bitfinex/quotes_SOLUSD_20220101
["timestamp","ask_amount","ask_price","bid_price","bid_amount"]
[1641062911613,9.3232,175.23,175.14,8.563]
[1641062912215,10.94422265,175.23,175.14,8.563]
[1641062912414,2.38102265,175.23,175.14,8.563]
[1641062912815,0.26,175.23,175.14,14.386]
[1641062913015,4.43342265,175.24,175.14,14.386]
[1641062913218,4.17342265,175.24,175.14,14.386]
[1641062913416,4.17342265,175.24,175.14,15.81269368]
[1641062914017,4.67342265,175.24,175.14,15.81269368]
[1641062914318,4.17342265,175.24,175.14,15.81269368]
[1641062914520,2.5524,175.24,175.14,15.81269368]
[1641062914917,3.0524,175.24,175.14,15.81269368]
[1641062915317,3.3124,175.24,175.14,15.81269368]
[1641062915719,2.8124,175.24,175.14,15.81269368]
[1641062916920,3.3124,175.24,175.14,15.81269368]
[1641062917321,2.8124,175.24,175.14,15.81269368]
[1641062918121,76.12702265,175.25,175.15,8.33]
[1641062918320,1.62102265,175.26,175.15,36.8645]
[1641062918521,1.62102265,175.26,175.15,37.1245]
[1641062918922,1.62102265,175.27,175.15,37.1245]
[1641062919727,2.12102265,175.27,175.2,8.5602]
[1641062920926,2.38102265,175.27,175.2,8.5602]
[1641062923152,2.38102265,175.27,175.16,1.2842]
[1641062923752,1.62102265,175.26,175.15,8.33]
[1641062923952,2.12102265,175.26,175.15,8.33]
[1641062924153,2.38102265,175.26,175.15,8.33]
[1641062924352,1.62102265,175.25,175.15,8.33]
[1641062924552,1.88102265,175.25,175.15,8.33]
[1641062924752,2.38102265,175.25,175.15,8.33]
[1641062924956,1.62102265,175.24,175.15,8.33]
[1641062925354,2.38102265,175.24,175.15,8.33]
[1641062925855,2.38102265,175.24,175.16,8.5619]
[1641062926055,0.26,175.24,175.16,8.5619]
[1641062926258,0.76,175.24,175.16,8.5619]
[1641062926456,0.5,175.24,175.16,8.5619]
[1641062926855,2.38102265,175.25,175.16,8.5619]
[1641062927658,10.94322265,175.25,175.16,8.5619]
[1641062928264,1.62102265,175.24,175.16,8.5619]
[1641062928561,2.38102265,175.24,175.16,8.5619]
[1641062928960,1.62102265,175.23,175.16,8.5619]
[1641062929162,1.62102265,175.23,175.15,8.33]
[1641062929368,2.38102265,175.23,175.15,8.33]
[1641062929671,2.38102265,175.23,175.14,8.5628]
[1641062930064,1.62102265,175.22,175.14,8.5628]
[1641062930463,1.88102265,175.22,175.14,8.5628]
[1641062930863,1.88102265,175.22,175.14,16.8928]
[1641062931266,0.26,175.22,175.14,16.8928]
[1641062931666,3.71522265,175.24,175.14,16.8928]
[1641062931866,1.62102265,175.23,175.14,16.8928]
[1641062932066,1.88102265,175.23,175.14,16.8928]
[1641062932266,2.38102265,175.23,175.14,16.8928]
[1641062932867,1.88102265,175.23,175.14,16.8928]
[1641062933466,2.38102265,175.23,175.14,16.8928]
[1641062935067,1.88102265,175.23,175.14,16.8928]
[1641062935271,2.38102265,175.23,175.14,16.8928]
[1641062935669,1.88102265,175.23,175.14,16.8928]
[1641062935968,0.26,175.23,175.14,16.8928]
[1641062936369,1.5942,175.24,175.14,16.8928]
[1641062936767,1.62102265,175.25,175.14,16.8928]
[1641062936969,1.62102265,175.25,175.14,18.4224]
[1641062937368,2.12102265,175.25,175.14,18.4224]
[1641062937569,0.5,175.25,175.14,18.4224]
[1641062938168,0.76,175.27,175.14,18.4224]
[1641062938369,0.26,175.27,175.14,18.4224]
[1641062938569,8.5613,175.27,175.14,18.4224]
[1641062938972,9.3213,175.27,175.14,18.4224]
[1641062940173,0.76,175.27,175.14,19.84909368]
[1641062940578,3.64732265,175.28,175.14,19.84909368]
[1641062943875,12.20792265,175.28,175.14,19.84909368]
[1641062944674,1.62102265,175.27,175.14,19.84909368]
[1641062944878,10.68252265,175.27,175.14,19.84909368]
[1641062945076,10.94252265,175.27,175.14,19.84909368]
[1641062946181,9.3215,175.27,175.14,19.84909368]
[1641062946776,9.3215,175.27,175.14,18.4224]
[1641062946977,1.2358,175.26,175.14,18.4224]
[1641062947177,8.5627,175.24,175.14,18.4224]
[1641062947377,9.0627,175.24,175.14,18.4224]
[1641062947579,0.76,175.24,175.14,18.4224]
[1641062947778,0.26,175.24,175.14,18.4224]
[1641062948208,3.61682265,175.26,175.14,18.4224]
[1641062948404,1.62102265,175.25,175.14,18.4224]
[1641062948608,1.88102265,175.25,175.14,18.4224]
[1641062948905,2.38102265,175.25,175.14,18.4224]
[1641062950111,0.76,175.25,175.14,18.4224]
[1641062950306,3.61682265,175.26,175.14,18.4224]
[1641062950507,1.62102265,175.25,175.14,18.4224]
[1641062951006,2.38102265,175.25,175.14,18.4224]
[1641062951608,1.2762,175.24,175.14,18.4224]
[1641062952006,2.0362,175.24,175.14,18.4224]
[1641062954813,2.0362,175.24,175.14,18.1624]
[1641062972538,1.7762,175.24,175.14,18.1624]
[1641062972741,1.62102265,175.25,175.14,18.1624]
[1641062972940,1.62102265,175.25,175.14,19.84909368]
[1641062973938,1.62102265,175.28,175.14,19.84909368]
[1641062974140,1.62102265,175.28,175.15,104.13]
[1641062974340,1.62102265,175.28,175.21,8.5578]
[1641062974640,2.91072265,175.3,175.22,8.33]
[1641062975242,3.41072265,175.3,175.25,8.558]
[1641062975441,3.67072265,175.3,175.25,8.558]
[1641062975642,3.17072265,175.3,175.25,8.558]
[1641062975842,3.67072265,175.3,175.25,8.558]
[1641062977450,2.0497,175.3,175.25,8.558]
[1641062979050,1.5497,175.3,175.25,8.558]
[1641062979651,2.0497,175.3,175.25,8.558]
[1641062980054,1.5497,175.3,175.25,8.558]
[1641062980453,2.0497,175.3,175.25,8.558]
[1641062981852,2.0497,175.3,175.24,8.5588]
[1641062982275,2.0497,175.3,175.22,8.33]
[1641062984676,10.6093,175.3,175.23,8.5594]
[1641062984880,10.6093,175.3,175.2,8.33]
[1641062985478,10.1093,175.3,175.2,8.33]
[1641062986782,10.1093,175.3,175.22,8.5598]
[1641062987085,10.6093,175.3,175.22,8.5598]
[1641062989285,1.62102265,175.28,175.21,8.5603]
[1641062989480,2.38102265,175.28,175.21,8.5603]
[1641062990789,3.72122265,175.28,175.21,8.5603]
[1641062996189,2.1002,175.28,175.21,8.5603]
[1641063010830,10.6607,175.28,175.21,8.5603]
[1641063011232,2.1002,175.28,175.21,8.5603]
[1641063011832,1.8402,175.28,175.21,8.5603]
[1641063013636,2.1002,175.28,175.21,8.5603]
[1641063017340,2.1002,175.28,175.21,16.8903]
[1641063017741,83.1097,175.2,175.18,29.8608]
[1641063017939,83.1097,175.2,175.19,8.33]
[1641063019742,83.1097,175.2,175.19,16.8896]
[1641063027877,83.1097,175.2,175.19,17.1496]
[1641063028277,26.0548,175.2,175.19,17.1496]
[1641063028977,26.0548,175.2,175.19,18.57629368]
[1641063032779,1.2628,175.3,175.2,24.0]
[1641063032979,1.2628,175.3,175.25,8.558]
[1641063033579,1.2628,175.3,175.21,36.8567]
[1641063033580,1.7628,175.3,175.21,36.8567]
[1641063033785,1.7628,175.3,175.21,8.33]
[1641063033981,2.0228,175.3,175.21,8.33]
[1641063034583,2.0228,175.3,175.23,8.5589]
[1641063036591,3.64382265,175.3,175.23,8.5589]
[1641063052331,1.62102265,175.3,175.23,8.5589]
[1641063052531,1.62102265,175.3,175.24,8.33]
[1641063052733,1.62102265,175.3,175.27,8.5564]
[1641063053135,1.62102265,175.32,175.27,8.5564]
[1641063053939,76.3589,175.33,175.27,8.5564]
[1641063054138,0.26,175.32,175.27,8.5564]
[1641063054344,1.9885,175.33,175.27,8.5564]
[1641063055740,1.7285,175.33,175.27,8.5564]
[1641063056938,1.2285,175.33,175.27,8.5564]
[1641063057140,1.4885,175.33,175.27,8.5564]
[1641063057439,1.2285,175.33,175.27,8.5564]
[1641063057639,1.4885,175.33,175.27,8.5564]
[1641063060548,1.4885,175.33,175.27,16.8864]
[1641063063949,1.9885,175.33,175.27,16.8864]
[1641063064154,1.4885,175.33,175.27,43.26759714]
[1641063064350,1.9885,175.33,175.27,43.26759714]
[1641063064551,1.4885,175.33,175.27,43.26759714]
[1641063065553,1.4885,175.33,175.27,16.8864]
[1641063071357,1.9885,175.33,175.27,16.8864]
[1641063071559,1.4885,175.33,175.27,16.8864]
[1641063075971,1.9885,175.33,175.27,16.8864]
[1641063076473,1.4885,175.33,175.27,16.8864]
[1641063077874,1.2285,175.33,175.27,16.8864]
[1641063079797,1.4885,175.33,175.27,16.8864]
[1641063088603,1.9885,175.33,175.27,16.8864]
[1641063088805,1.4885,175.33,175.27,16.8864]
[1641063104425,1.9885,175.33,175.27,16.8864]
[1641063104826,1.4885,175.33,175.27,16.8864]
[1641063125013,1.2285,175.33,175.27,16.8864]
[1641063126414,1.4885,175.33,175.27,16.8864]
[1641063130618,0.26,175.33,175.27,16.8864]
[1641063131019,1.5166,175.35,175.27,16.8864]
[1641063131218,1.2566,175.35,175.27,16.8864]
[1641063131517,1.5166,175.35,175.27,16.8864]
[1641063131919,1.5166,175.35,175.27,18.1377]
[1641063143633,1.62102265,175.37,175.27,19.56439368]
[1641063143843,1.62102265,175.37,175.27,19.82439368]
[1641063144234,1.62102265,175.4,175.28,104.13]
[1641063144434,1.62102265,175.4,175.34,8.5519]
[1641063144635,1.62102265,175.4,175.35,8.33]
[1641063145035,1.2906,175.42,175.35,8.33]
[1641063145236,1.7906,175.42,175.35,8.33]
[1641063145435,2.0506,175.42,175.35,8.33]
[1641063146535,3.67162265,175.42,175.35,8.33]
[1641063146736,3.67162265,175.42,175.38,8.5519]
[1641063146939,3.67162265,175.42,175.35,8.33]
[1641063147137,9.17962265,175.42,175.35,8.33]
[1641063147338,9.17962265,175.42,175.32,8.33]
[1641063148038,9.17962265,175.42,175.35,8.5534]
[1641063148238,3.67162265,175.42,175.35,8.5534]
[1641063148641,1.62102265,175.41,175.35,8.5534]
[1641063148841,2.12102265,175.41,175.35,8.5534]
[1641063149040,1.62102265,175.4,175.35,8.5534]
[1641063149339,1.62102265,175.4,175.34,8.5538]
[1641063149540,1.88102265,175.4,175.34,8.5538]
[1641063150538,1.88102265,175.4,175.33,8.5544]
[1641063150941,2.38102265,175.4,175.33,8.5544]
[1641063151349,0.76,175.4,175.35,0.02]
[1641063151542,0.5,175.4,175.35,0.02]
[1641063151742,3.66632265,175.41,175.35,0.02]
[1641063151942,1.7853,175.41,175.35,0.02]
[1641063152347,1.2853,175.41,175.35,0.02]
[1641063152843,1.7853,175.41,175.35,8.5734]
[1641063153442,1.2853,175.41,175.35,8.5734]
[1641063153644,1.7853,175.41,175.35,8.5734]
[1641063154544,2.0453,175.41,175.35,8.5734]
[1641063155545,1.7853,175.41,175.35,8.5734]
[1641063156253,1.7853,175.41,175.35,0.02]
[1641063157055,2.0453,175.41,175.35,0.02]
[1641063158477,2.0453,175.41,175.35,8.5734]
[1641063159479,3.66632265,175.41,175.35,8.5734]
[1641063161983,2.0453,175.41,175.35,8.5734]
[1641063162683,2.0453,175.41,175.35,0.02]
[1641063163481,3.66632265,175.41,175.35,0.02]
[1641063164884,1.62102265,175.4,175.35,0.02]
[1641063165085,1.88102265,175.4,175.35,0.02]
[1641063165284,2.38102265,175.4,175.35,0.02]
[1641063166087,1.62102265,175.39,175.35,0.02]
[1641063166587,2.38102265,175.39,175.35,0.02]
[1641063167588,1.2976,175.38,175.35,0.02]
[1641063167989,2.0576,175.38,175.35,0.02]
[1641063168591,6.81452761,175.37,175.35,0.02]
[1641063168990,7.57452761,175.37,175.35,0.02]
[1641063172295,7.07452761,175.37,175.35,0.02]
[1641063173097,6.06045808,175.37,175.35,0.02]
[1641063173302,5.56045808,175.37,175.35,0.02]
[1641063174506,5.82045808,175.37,175.35,0.02]
[1641063175707,5.82045808,175.37,175.35,8.5732]
[1641063176109,0.26,175.37,175.36,0.50197092]
[1641063177335,0.26,175.37,175.35,0.02]
[1641063177531,2.1083,175.41,175.35,0.02]
[1641063181633,10.6629,175.41,175.35,0.02]
[1641063182233,12.28392265,175.41,175.35,0.02]
[1641063183439,1.62102265,175.4,175.35,0.02]
[1641063183839,2.38102265,175.4,175.35,0.02]
[1641063184841,10.93602265,175.4,175.35,0.02]
[1641063186242,1.62102265,175.39,175.35,0.02]
[1641063186442,2.12102265,175.39,175.35,0.02]
[1641063186644,2.38102265,175.39,175.35,0.02]
[1641063186943,0.76,175.39,175.35,0.02]
[1641063187343,0.76,175.4,175.35,0.02]
[1641063187547,0.5,175.4,175.35,0.02]
[1641063187746,12.23512265,175.41,175.35,0.02]
[1641063187946,1.62102265,175.4,175.35,0.02]
[1641063188351,2.38102265,175.4,175.35,0.02]
[1641063189247,1.2948,175.39,175.35,0.02]
[1641063189447,1.7948,175.39,175.35,0.02]
[1641063189650,2.0548,175.39,175.35,0.02]
[1641063198262,1.7948,175.39,175.35,0.02]
[1641063199462,2.0548,175.39,175.35,0.02]
[1641063203868,10.6101,175.39,175.35,0.02]
[1641063204468,12.23112265,175.39,175.35,0.02]
[1641063208270,63.0,175.38,175.3,7.5759]
[1641063208475,72.3158,175.38,175.3,7.5759]
[1641063210801,9.3158,175.38,175.3,7.5759]
[1641063212803,0.76,175.38,175.3,7.5759]
[1641063213002,0.5,175.38,175.3,7.5759]
[1641063213206,10.6101,175.39,175.3,7.5759]
[1641063216106,12.23112265,175.39,175.3,7.5759]
[1641063218312,3.67582265,175.39,175.3,7.5759]
[1641063218710,2.0548,175.39,175.3,7.5759]
[1641063219708,2.0548,175.39,175.3,6.5759]
[1641063220510,0.76,175.39,175.31,8.33]
[1641063220712,0.76,175.39,175.34,8.5536]
[1641063220912,2.38102265,175.4,175.34,8.5536]
[1641063222512,0.76,175.4,175.34,8.5536]
[1641063222913,3.73312265,175.41,175.34,8.5536]
[1641063223115,3.73312265,175.41,175.32,9.8632]
[1641063224114,1.62102265,175.4,175.32,9.8632]
[1641063224513,2.38102265,175.4,175.32,9.8632]
[1641063229719,10.93602265,175.4,175.32,9.8632]
[1641063231618,10.93602265,175.4,175.32,8.5545]
[1641063244447,2.38102265,175.4,175.32,8.5545]
[1641063248563,0.76,175.4,175.32,8.5545]
[1641063248963,12.28792265,175.41,175.32,8.5545]
[1641063255172,1.62102265,175.4,175.32,8.5545]
[1641063255373,10.67602265,175.4,175.32,8.5545]
[1641063255573,10.93602265,175.4,175.32,8.5545]
[1641063263382,10.93602265,175.4,175.31,8.5554]
[1641063264287,2.94132265,175.39,175.31,8.5554]
[1641063264484,3.70132265,175.39,175.31,8.5554]
[1641063264684,2.12102265,175.39,175.31,8.5554]
[1641063264887,2.12102265,175.39,175.31,16.8854]
[1641063265487,0.5,175.39,175.31,16.8854]
[1641063265987,4.52730559,175.43,175.31,16.8854]
[1641063266187,4.78730559,175.43,175.31,16.8854]
[1641063266386,4.78730559,175.43,175.32,1.2989]
[1641063266587,4.78730559,175.43,175.36,8.5527]
[1641063269998,2.38102265,175.43,175.36,8.5527]
[1641063270700,0.76,175.43,175.36,8.5527]
[1641063270914,0.26,175.43,175.36,8.5527]
[1641063271118,2.0001,175.44,175.36,8.5527]
[1641063275326,3.62112265,175.44,175.36,8.5527]
[1641063276122,3.62112265,175.44,175.3,81.5092]
[1641063276328,12.17432265,175.44,175.28,8.33]
[1641063276621,9.75669368,175.43,175.28,8.33]
[1641063277027,1.42669368,175.42,175.28,8.33]
[1641063277223,1.62102265,175.4,175.28,8.33]
[1641063277425,8.5568,175.35,175.28,16.8864]
[1641063277627,8.5568,175.35,175.28,8.33]
[1641063277827,9.3168,175.35,175.26,73.3432]
[1641063278029,9.3168,175.35,175.25,80.7672]
[1641063278226,9.3168,175.35,175.25,79.4182]
[1641063278424,9.3168,175.35,175.23,8.33]
[1641063279024,10.93782265,175.35,175.23,8.33]
[1641063279224,10.93782265,175.35,175.24,8.5585]
[1641063279225,8.5585,175.32,175.24,8.5585]
[1641063279425,9.0585,175.32,175.24,8.5585]
[1641063279634,9.3185,175.32,175.24,8.5585]
[1641063282426,8.8185,175.32,175.24,8.5585]
[1641063282827,8.8185,175.32,175.23,8.559]
[1641063283527,8.3185,175.32,175.23,8.559]
[1641063283931,8.8185,175.32,175.23,8.559]
[1641063284327,1.62102265,175.33,175.23,8.559]
[1641063284730,1.62102265,175.33,175.23,16.889]
[1641063284930,2.12102265,175.33,175.23,16.889]
[1641063285327,0.5,175.33,175.23,16.889]
[1641063285727,2.38102265,175.34,175.23,16.889]
[1641063287231,10.93832265,175.34,175.23,16.889]
[1641063289832,8.5584,175.32,175.23,16.889]
[1641063290231,9.0584,175.32,175.23,16.889]
[1641063290831,10.67942265,175.32,175.23,16.889]
[1641063291234,10.93942265,175.32,175.23,16.889]
[1641063291832,10.43942265,175.32,175.23,16.889]
[1641063295840,9.93942265,175.32,175.23,16.889]
[1641063298369,9.93942265,175.32,175.22,9.8049]
[1641063298569,9.93942265,175.32,175.22,18.1349]
[1641063299569,1.2647,175.31,175.22,9.5754]
[1641063299770,8.5602,175.28,175.22,1.2454]
[1641063299971,9.3202,175.28,175.21,8.56]
[1641063300172,9.3202,175.28,175.19,84.7514]
[1641063301572,9.3202,175.28,175.19,93.312]
[1641063302975,9.0602,175.28,175.19,93.312]
[1641063304376,9.3202,175.28,175.19,93.312]
[1641063304778,8.8202,175.28,175.19,93.312]
[1641063305584,8.3202,175.28,175.19,93.312]
[1641063305781,8.8202,175.28,175.19,93.312]
[1641063307087,0.26,175.28,175.19,93.312]
[1641063307484,9.3197,175.3,175.19,93.312]
[1641063307984,9.3197,175.3,175.19,94.5422]
[1641063309786,0.76,175.3,175.19,94.5422]
[1641063309986,2.0192,175.31,175.19,94.8022]
[1641063310186,0.76,175.31,175.19,94.8022]
[1641063310387,0.26,175.31,175.19,94.8022]
[1641063310586,80.6408,175.32,175.19,94.8022]
[1641063310791,80.1408,175.32,175.19,94.8022]
[1641063311891,0.26,175.32,175.19,94.8022]
[1641063312091,10.43842265,175.34,175.19,94.8022]
[1641063312292,10.93842265,175.34,175.19,94.8022]
[1641063313293,1.2932,175.33,175.19,94.8022]
[1641063313491,0.26,175.33,175.19,94.8022]
[1641063314293,10.93842265,175.34,175.19,94.8022]
[1641063314493,9.3174,175.34,175.19,94.8022]
[1641063315194,1.2825,175.33,175.19,94.8022]
[1641063315394,10.3405,175.33,175.19,94.5422]
[1641063315595,12.02719368,175.33,175.19,16.8906]
[1641063315822,1.62102265,175.32,175.2,1.2995]
[1641063315996,1.88102265,175.32,175.21,8.33]
[1641063316197,2.38102265,175.32,175.21,8.33]
[1641063316596,10.93902265,175.32,175.22,25.6811196]
[1641063316799,1.62102265,175.32,175.26,8.5575]
[1641063317001,1.62102265,175.32,175.25,8.33]
[1641063317999,1.88102265,175.32,175.25,8.33]
[1641063318201,1.88102265,175.32,175.28,8.5567]
[1641063318600,0.26,175.32,175.25,8.33]
[1641063319103,2.38102265,175.34,175.25,8.33]
[1641063319503,8.5576,175.33,175.26,8.5573]
[1641063319705,2.38102265,175.34,175.26,8.33]
[1641063319907,0.26,175.33,175.26,8.33]
[1641063320106,2.38102265,175.34,175.26,8.33]
[1641063320507,1.88102265,175.34,175.26,8.33]
[1641063321516,10.93802265,175.34,175.27,8.5568]
[1641063321718,10.43802265,175.34,175.27,8.5568]
[1641063322115,10.17802265,175.34,175.27,8.5568]
[1641063322516,2.12102265,175.34,175.27,8.5568]
[1641063323016,0.5,175.34,175.27,8.5568]
[1641063323430,11.94952265,175.35,175.27,8.5568]
[1641063323627,12.20952265,175.35,175.27,8.5568]
[1641063326033,3.65302265,175.35,175.28,8.33]
[1641063326330,0.76,175.35,175.29,8.5557]
[1641063326532,0.5,175.35,175.29,45.88392474]
[1641063326733,2.38102265,175.36,175.29,45.88392474]
[1641063328131,0.76,175.36,175.29,45.88392474]
[1641063328531,2.38102265,175.37,175.29,45.88392474]
[1641063328735,0.76,175.37,175.29,45.88392474]
[1641063328932,0.26,175.37,175.29,45.88392474]
[1641063329134,2.38102265,175.38,175.29,45.88392474]
[1641063329737,10.93622265,175.38,175.29,45.88392474]
[1641063330536,1.62102265,175.37,175.29,45.88392474]
[1641063330935,2.38102265,175.37,175.29,45.88392474]
[1641063331136,0.76,175.37,175.29,45.88392474]
[1641063331536,10.93622265,175.38,175.29,45.88392474]
[1641063332341,1.2955,175.37,175.29,45.88392474]
[1641063332538,1.5555,175.37,175.29,16.8857]
[1641063332739,10.6115,175.37,175.28,1.283]
[1641063333036,10.6115,175.37,175.28,8.33]
[1641063333637,2.0555,175.37,175.28,8.33]
[1641063334439,2.0555,175.37,175.28,16.8864]
[1641063335642,10.6116,175.37,175.28,16.8864]
[1641063336842,2.0555,175.37,175.28,18.1215]
[1641063337042,0.76,175.37,175.28,18.1215]
[1641063337444,1.334,175.38,175.28,18.1215]
[1641063337846,3.71502265,175.38,175.28,18.1215]
[1641063339245,2.38102265,175.38,175.28,18.1215]
[1641063339645,0.76,175.38,175.28,18.1215]
[1641063339845,0.26,175.38,175.28,18.1215]
[1641063340046,2.38102265,175.39,175.28,18.1215]
[1641063343053,10.93622265,175.39,175.28,18.1215]
[1641063343255,12.36291633,175.39,175.26,8.557]
[1641063343453,12.36291633,175.39,175.24,8.33]
[1641063343752,1.2508,175.38,175.24,8.33]
[1641063343957,1.62102265,175.35,175.24,8.33]
[1641063344156,10.17842265,175.35,175.25,28.79932016]
[1641063344356,2.38102265,175.35,175.27,8.5564]
[1641063344952,0.76,175.35,175.27,8.5564]
[1641063345352,1.62102265,175.35,175.27,8.5568]
[1641063345554,1.88102265,175.35,175.26,8.33]
[1641063345754,2.38102265,175.35,175.26,8.33]
[1641063345954,0.76,175.35,175.26,8.33]
[1641063346354,2.38102265,175.36,175.26,8.33]
[1641063346554,0.76,175.36,175.3,8.5549]
[1641063346957,2.38102265,175.38,175.3,8.5549]
[1641063347166,2.38102265,175.38,175.3,16.8849]
[1641063347358,2.12102265,175.38,175.3,16.8849]
[1641063347559,1.62102265,175.37,175.3,16.8849]
[1641063347958,2.12102265,175.37,175.3,16.8849]
[1641063348458,1.62102265,175.4,175.3,16.8849]
[1641063349363,1.62102265,175.4,175.3,18.1836]
[1641063349761,2.38102265,175.4,175.3,18.1836]
[1641063350264,0.76,175.4,175.3,18.1836]
[1641063350462,82.20232265,175.41,175.3,18.1836]
[1641063352466,80.5813,175.41,175.3,18.1836]
[1641063354668,82.20232265,175.41,175.3,18.1836]
[1641063356064,90.75682265,175.41,175.3,18.1836]
[1641063358070,1.62102265,175.4,175.3,18.1836]
[1641063358269,10.17592265,175.4,175.3,18.1836]
[1641063358471,10.93592265,175.4,175.3,18.1836]
[1641063359070,1.2275,175.39,175.3,18.1836]
[1641063359473,1.9875,175.39,175.3,18.1836]
[1641063359671,1.62102265,175.4,175.3,18.1836]
[1641063360175,80.14632265,175.41,175.3,23.6526]
[1641063360373,80.14632265,175.41,175.3,23.9126]
[1641063360572,1.62102265,175.41,175.3,23.9126]
[1641063361172,1.62102265,175.43,175.3,23.6526]
[1641063361375,3.35362265,175.43,175.3,23.6526]
[1641063361580,3.61362265,175.43,175.3,23.6526]
[1641063362182,1.9926,175.43,175.3,23.6526]
[1641063362873,3.35362265,175.43,175.3,23.6526]
[1641063363074,3.35362265,175.43,175.3,18.1836]
[1641063363273,11.90712265,175.43,175.3,18.1836]
[1641063363572,11.90712265,175.43,175.3,18.4436]
[1641063363573,3.35362265,175.43,175.3,18.4436]
[1641063363975,1.62102265,175.42,175.3,18.4436]
[1641063364374,2.38102265,175.42,175.3,18.4436]
[1641063364797,2.38102265,175.42,175.3,18.1836]
[1641063367103,1.62102265,175.41,175.3,18.1836]
[1641063367503,1.88102265,175.41,175.3,18.1836]
[1641063368201,0.26,175.41,175.3,18.1836]
[1641063368601,12.16742265,175.43,175.3,18.1836]
[1641063370008,1.88102265,175.43,175.3,18.4436]
[1641063370205,1.62102265,175.43,175.31,1.42669368]
[1641063370403,1.62102265,175.41,175.36,8.5503]
[1641063370604,1.62102265,175.41,175.37,8.33]
[1641063371004,1.62102265,175.47,175.37,8.33]
[1641063371805,1.62102265,175.47,175.37,9.5585]
[1641063372005,2.12102265,175.47,175.37,9.5585]
[1641063372405,2.12102265,175.47,175.37,9.8185]
[1641063372606,0.5,175.47,175.41,8.55]
[1641063373007,8.68471265,175.48,175.41,8.55]
[1641063373207,8.68471265,175.48,175.39,8.33]
[1641063373912,8.68471265,175.48,175.4,8.5503]
[1641063374108,1.62102265,175.47,175.4,8.5503]
[1641063374509,2.38102265,175.47,175.39,8.33]
[1641063374712,3.80771633,175.47,175.39,8.33]
[1641063374910,3.80771633,175.47,175.34,8.33]
[1641063375309,1.62102265,175.44,175.34,8.33]
[1641063375509,1.88102265,175.44,175.35,23.37143968]
[1641063375710,1.88102265,175.44,175.37,8.5515]
[1641063375911,0.26,175.44,175.37,16.8815]
[1641063376310,2.38102265,175.45,175.37,16.8815]
[1641063378014,2.38102265,175.45,175.35,8.5524]
[1641063378214,1.42669368,175.44,175.32,14.675]
[1641063378417,0.5,175.44,175.32,14.675]
[1641063378613,1.88102265,175.44,175.32,14.675]
[1641063379014,2.38102265,175.44,175.33,26.03499053]
[1641063379213,2.38102265,175.44,175.34,8.33]
[1641063380618,2.38102265,175.44,175.34,16.8831]
[1641063381018,1.62102265,175.43,175.34,16.8831]
[1641063381420,2.38102265,175.43,175.34,16.8831]
[1641063382224,2.38102265,175.43,175.34,8.33]
[1641063383223,1.62102265,175.42,175.34,8.33]
[1641063383924,2.93612265,175.44,175.34,8.33]
[1641063384523,3.19612265,175.44,175.34,8.33]
[1641063384723,3.19612265,175.44,175.34,16.8832]
[1641063384926,3.69612265,175.44,175.34,16.8832]
[1641063385222,1.62102265,175.43,175.34,8.33]
[1641063385423,2.12102265,175.43,175.34,8.33]
[1641063385623,2.38102265,175.43,175.34,8.33]
[1641063385823,1.62102265,175.42,175.34,8.33]
[1641063386027,1.88102265,175.42,175.34,8.33]
[1641063386229,2.38102265,175.42,175.34,8.33]
[1641063386630,10.93532265,175.42,175.34,8.33]
[1641063387630,1.62102265,175.41,175.34,8.33]
[1641063388031,2.38102265,175.41,175.34,8.33]
[1641063389433,1.88102265,175.41,175.34,8.33]